[Event "Titled Tuesday Blitz June 27 Early 2023"]
[White "Szyszylo, Rafal"]
[Black "Jaivardhan Raj"]
[WhiteFideId "1109626"]
[BlackFideId "25744437"]
[WhiteElo "2391"]
[BlackElo "2096"]
[Result "1-0"]
[Round "5"]
[TimeControl "180+2"]
[Date "2023.06.27"]
[WhiteClock "0:00:15"]
[BlackClock "0:00:05"]
[Board "196"]

1. e4 {[%clk 0:02:53]}  c5 {[%clk 0:02:57]} 2. Nc3 {[%clk 0:02:53]}  Nc6 {[%clk 0:02:56]} 3. Bb5 {[%clk 0:02:50]}  Nd4 {[%clk 0:02:47]} 4. Nf3 {[%clk 0:02:49]}  Nxb5 {[%clk 0:02:38]} 5. Nxb5 {[%clk 0:02:42]}  d5 {[%clk 0:02:39]} 6. exd5 {[%clk 0:02:39]}  a6 {[%clk 0:02:25]} 7. Nc3 {[%clk 0:02:40]}  Nf6 {[%clk 0:02:25]} 8. d4 {[%clk 0:02:33]}  c4 {[%clk 0:02:20]} 9. Ne5 {[%clk 0:02:11]}  b5 {[%clk 0:02:01]} 10. O-O {[%clk 0:02:05]}  Nxd5 {[%clk 0:01:57]} 11. Qf3 {[%clk 0:02:03]}  Be6 {[%clk 0:01:41]} 12. Ne4 {[%clk 0:01:58]}  f6 {[%clk 0:01:29]} 13. Nc5 {[%clk 0:01:45]}  Qc8 {[%clk 0:00:57]} 14. Nxe6 {[%clk 0:01:26]}  Qxe6 {[%clk 0:00:48]} 15. Qh5+ {[%clk 0:00:49]}  g6 {[%clk 0:00:40]} 16. Nxg6 {[%clk 0:00:49]}  Qf7 {[%clk 0:00:40]} 17. Nf4 {[%clk 0:00:50]}  Nxf4 {[%clk 0:00:38]} 18. Qxf7+ {[%clk 0:00:49]}  Kxf7 {[%clk 0:00:38]} 19. Bxf4 {[%clk 0:00:50]}  Rd8 {[%clk 0:00:31]} 20. c3 {[%clk 0:00:50]}  Bg7 {[%clk 0:00:26]} 21. a4 {[%clk 0:00:50]}  e5 {[%clk 0:00:25]} 22. dxe5 {[%clk 0:00:49]}  fxe5 {[%clk 0:00:26]} 23. Bg5 {[%clk 0:00:48]}  Rd7 {[%clk 0:00:21]} 24. axb5 {[%clk 0:00:48]}  axb5 {[%clk 0:00:21]} 25. Ra5 {[%clk 0:00:47]}  Rb7 {[%clk 0:00:22]} 26. Rfa1 {[%clk 0:00:40]}  h6 {[%clk 0:00:18]} 27. Be3 {[%clk 0:00:35]}  Rhb8 {[%clk 0:00:15]} 28. Ra7 {[%clk 0:00:27]}  Ke6 {[%clk 0:00:14]} 29. R1a6+ {[%clk 0:00:26]}  Kd7 {[%clk 0:00:12]} 30. Kf1 {[%clk 0:00:21]}  e4 {[%clk 0:00:10]} 31. Rxb7+ {[%clk 0:00:17]}  Rxb7 {[%clk 0:00:10]} 32. Rg6 {[%clk 0:00:17]}  Kc8 {[%clk 0:00:09]} 33. Bxh6 {[%clk 0:00:15]}  Bxh6 {[%clk 0:00:07]} 34. Rxh6 {[%clk 0:00:16]}  b4 {[%clk 0:00:07]} 35. Re6 {[%clk 0:00:15]}  bxc3 {[%clk 0:00:07]} 36. bxc3 {[%clk 0:00:16]}  Kd7 {[%clk 0:00:07]} 37. Rxe4 {[%clk 0:00:16]}  Rb1+ {[%clk 0:00:07]} 38. Ke2 {[%clk 0:00:15]}  Rb2+ {[%clk 0:00:05]} 39. Kf3 {[%clk 0:00:15]} 1-0


[Site "https://www.chess.com"]

[Event "Titled Tuesday Blitz June 27 Early 2023"]
[White "Barbot, Pierre"]
[Black "Ho, In Hei Henry"]
[WhiteFideId "663727"]
[BlackFideId "6002552"]
[WhiteElo "2381"]
[BlackElo "2020"]
[Result "1-0"]
[Round "5"]
[TimeControl "180+2"]
[Date "2023.06.27"]
[WhiteClock "0:00:21"]
[BlackClock "0:00:32"]
[Board "198"]

1. d4 {[%clk 0:03:00]}  d5 {[%clk 0:02:59]} 2. Nf3 {[%clk 0:02:59]}  Nf6 {[%clk 0:02:58]} 3. Bf4 {[%clk 0:02:59]}  Bf5 {[%clk 0:02:57]} 4. e3 {[%clk 0:02:59]}  e6 {[%clk 0:02:57]} 5. c4 {[%clk 0:02:58]}  c6 {[%clk 0:02:57]} 6. Nc3 {[%clk 0:02:58]}  Bd6 {[%clk 0:02:56]} 7. Bd3 {[%clk 0:02:57]}  Bxf4 {[%clk 0:02:55]} 8. exf4 {[%clk 0:02:57]}  Bxd3 {[%clk 0:02:53]} 9. Qxd3 {[%clk 0:02:58]}  h6 {[%clk 0:02:52]} 10. O-O {[%clk 0:02:56]}  O-O {[%clk 0:02:52]} 11. Rad1 {[%clk 0:02:41]}  Nbd7 {[%clk 0:02:51]} 12. Rfe1 {[%clk 0:02:41]}  Qc7 {[%clk 0:02:47]} 13. Ne5 {[%clk 0:02:40]}  Rad8 {[%clk 0:02:42]} 14. cxd5 {[%clk 0:02:20]}  exd5 {[%clk 0:02:31]} 15. Re3 {[%clk 0:02:08]}  Nh5 {[%clk 0:02:15]} 16. Qf5 {[%clk 0:02:01]}  Nhf6 {[%clk 0:01:45]} 17. Rg3 {[%clk 0:01:49]}  b5 {[%clk 0:01:41]} 18. Rdd3 {[%clk 0:01:40]}  b4 {[%clk 0:01:37]} 19. Ng4 {[%clk 0:00:26]}  Nxg4 {[%clk 0:01:12]} 20. Qxg4 {[%clk 0:00:27]}  g6 {[%clk 0:01:08]} 21. f5 {[%clk 0:00:27]}  g5 {[%clk 0:00:56]} 22. Qh5 {[%clk 0:00:21]}  Kg7 {[%clk 0:00:36]} 23. Rxg5+ {[%clk 0:00:20]}  hxg5 {[%clk 0:00:35]} 24. Qxg5+ {[%clk 0:00:21]}  Kh8 {[%clk 0:00:32]} 25. Rh3# {[%clk 0:00:21]} 1-0


[Site "https://www.chess.com"]

[Event "Titled Tuesday Blitz June 27 Early 2023"]
[White "TomLiu777"]
[Black "Ajavon, Anthony Obieni"]
[BlackFideId "12600784"]
[WhiteElo "2372"]
[BlackElo "2018"]
[Result "1-0"]
[Round "5"]
[TimeControl "180+2"]
[Date "2023.06.27"]
[WhiteClock "0:00:37"]
[BlackClock "0:00:00"]
[Board "199"]

1. b3 {[%clk 0:02:59]}  e5 {[%clk 0:02:55]} 2. Bb2 {[%clk 0:03:00]}  Nc6 {[%clk 0:02:56]} 3. e3 {[%clk 0:02:59]}  d6 {[%clk 0:02:55]} 4. c4 {[%clk 0:02:59]}  Nf6 {[%clk 0:02:56]} 5. Nf3 {[%clk 0:02:59]}  g6 {[%clk 0:02:55]} 6. d4 {[%clk 0:03:00]}  exd4 {[%clk 0:02:54]} 7. Nxd4 {[%clk 0:02:59]}  Bg7 {[%clk 0:02:50]} 8. Be2 {[%clk 0:02:58]}  O-O {[%clk 0:02:49]} 9. Nxc6 {[%clk 0:02:54]}  bxc6 {[%clk 0:02:48]} 10. Bf3 {[%clk 0:02:53]}  Bb7 {[%clk 0:02:40]} 11. O-O {[%clk 0:02:52]}  Nd7 {[%clk 0:02:23]} 12. Bxg7 {[%clk 0:02:50]}  Kxg7 {[%clk 0:02:22]} 13. Nc3 {[%clk 0:02:51]}  Qf6 {[%clk 0:02:17]} 14. Ne4 {[%clk 0:02:51]}  Qe7 {[%clk 0:02:14]} 15. g3 {[%clk 0:02:46]}  c5 {[%clk 0:02:04]} 16. Nc3 {[%clk 0:02:38]}  Bxf3 {[%clk 0:01:59]} 17. Qxf3 {[%clk 0:02:39]}  Ne5 {[%clk 0:01:43]} 18. Qe2 {[%clk 0:02:32]}  c6 {[%clk 0:01:12]} 19. Rad1 {[%clk 0:02:30]}  Rad8 {[%clk 0:01:07]} 20. Kg2 {[%clk 0:02:15]}  Qe6 {[%clk 0:01:01]} 21. Qb2 {[%clk 0:02:13]}  Kg8 {[%clk 0:00:57]} 22. Ne4 {[%clk 0:01:56]}  Ng4 {[%clk 0:00:17]} 23. Ng5 {[%clk 0:01:27]}  Qf5 {[%clk 0:00:12]} 24. h4 {[%clk 0:01:20]}  h6 {[%clk 0:00:10]} 25. Nf3 {[%clk 0:01:15]}  d5 {[%clk 0:00:06]} 26. cxd5 {[%clk 0:00:56]}  cxd5 {[%clk 0:00:05]} 27. Qb1 {[%clk 0:00:53]}  Qe6 {[%clk 0:00:01]} 28. h5 {[%clk 0:00:46]}  Kh7 {[%clk 0:00:00]} 29. Qc2 {[%clk 0:00:37]} 1-0


[Site "https://www.chess.com"]

[Event "Titled Tuesday Blitz June 27 Early 2023"]
[White "Skiadopoulos, Nikolaos"]
[Black "Fernandez Siles, Luis"]
[WhiteFideId "4200772"]
[BlackFideId "2209420"]
[WhiteElo "1923"]
[BlackElo "2362"]
[Result "0-1"]
[Round "5"]
[TimeControl "180+2"]
[Date "2023.06.27"]
[WhiteClock "0:00:00"]
[BlackClock "0:00:27"]
[Board "200"]

1. e4 {[%clk 0:02:58]}  c5 {[%clk 0:02:59]} 2. Nf3 {[%clk 0:02:55]}  Nc6 {[%clk 0:02:59]} 3. c3 {[%clk 0:02:52]}  Nf6 {[%clk 0:02:59]} 4. e5 {[%clk 0:02:50]}  Nd5 {[%clk 0:02:59]} 5. d4 {[%clk 0:02:50]}  cxd4 {[%clk 0:02:59]} 6. cxd4 {[%clk 0:02:43]}  d6 {[%clk 0:02:59]} 7. Bc4 {[%clk 0:02:39]}  Nb6 {[%clk 0:02:58]} 8. Bxf7+ {[%clk 0:02:39]}  Kxf7 {[%clk 0:02:57]} 9. e6+ {[%clk 0:02:38]}  Kg8 {[%clk 0:02:52]} 10. d5 {[%clk 0:02:28]}  Nxd5 {[%clk 0:02:26]} 11. Qxd5 {[%clk 0:02:27]}  Qa5+ {[%clk 0:02:27]} 12. Nc3 {[%clk 0:02:20]}  Qxd5 {[%clk 0:02:11]} 13. Nxd5 {[%clk 0:02:20]}  Nd8 {[%clk 0:02:04]} 14. Bg5 {[%clk 0:01:58]}  Bxe6 {[%clk 0:01:50]} 15. Nxe7+ {[%clk 0:01:50]}  Kf7 {[%clk 0:01:47]} 16. O-O-O {[%clk 0:01:40]}  Bxe7 {[%clk 0:01:45]} 17. Bxe7 {[%clk 0:01:40]}  Kxe7 {[%clk 0:01:45]} 18. Rhe1 {[%clk 0:01:39]}  Rc8+ {[%clk 0:01:37]} 19. Kb1 {[%clk 0:01:37]}  Rc5 {[%clk 0:01:33]} 20. b4 {[%clk 0:01:33]}  Rb5 {[%clk 0:01:23]} 21. a3 {[%clk 0:01:31]}  Rf8 {[%clk 0:01:19]} 22. Nd4 {[%clk 0:01:28]}  Re5 {[%clk 0:01:19]} 23. f3 {[%clk 0:01:22]}  Nc6 {[%clk 0:01:12]} 24. Rxe5 {[%clk 0:01:10]}  dxe5 {[%clk 0:01:08]} 25. Nb5 {[%clk 0:01:04]}  Rd8 {[%clk 0:01:03]} 26. Re1 {[%clk 0:01:03]}  Rd3 {[%clk 0:00:57]} 27. Kb2 {[%clk 0:00:37]}  Rb3+ {[%clk 0:00:42]} 28. Kc2 {[%clk 0:00:37]}  a6 {[%clk 0:00:42]} 29. Nc7 {[%clk 0:00:33]}  Rxa3 {[%clk 0:00:42]} 30. f4 {[%clk 0:00:29]}  Ra2+ {[%clk 0:00:36]} 31. Kc3 {[%clk 0:00:27]}  Rxg2 {[%clk 0:00:34]} 32. fxe5 {[%clk 0:00:26]}  Rxh2 {[%clk 0:00:32]} 33. b5 {[%clk 0:00:22]}  axb5 {[%clk 0:00:31]} 34. Nxb5 {[%clk 0:00:21]}  Rh4 {[%clk 0:00:30]} 35. Nd6 {[%clk 0:00:16]}  b6 {[%clk 0:00:28]} 36. Ra1 {[%clk 0:00:00]}  Nxe5 {[%clk 0:00:27]} 0-1


[Site "https://www.chess.com"]

[Event "Titled Tuesday Blitz June 27 Early 2023"]
[White "Eidelman, Gabriel"]
[Black "Gyulamiryan-koryun"]
[WhiteFideId "30910544"]
[WhiteElo "2447"]
[BlackElo "1982"]
[Result "1/2-1/2"]
[Round "5"]
[TimeControl "180+2"]
[Date "2023.06.27"]
[WhiteClock "0:00:02"]
[BlackClock "0:00:02"]
[Board "203"]

1. Nf3 {[%clk 0:03:00]}  Nf6 {[%clk 0:02:54]} 2. c4 {[%clk 0:03:00]}  c6 {[%clk 0:02:52]} 3. Nc3 {[%clk 0:02:57]}  d5 {[%clk 0:02:52]} 4. e3 {[%clk 0:02:57]}  g6 {[%clk 0:02:50]} 5. d4 {[%clk 0:02:55]}  Bg7 {[%clk 0:02:50]} 6. Be2 {[%clk 0:02:55]}  O-O {[%clk 0:02:47]} 7. O-O {[%clk 0:02:51]}  Bf5 {[%clk 0:02:44]} 8. cxd5 {[%clk 0:02:46]}  cxd5 {[%clk 0:02:39]} 9. Qb3 {[%clk 0:02:46]}  b6 {[%clk 0:02:23]} 10. Bd2 {[%clk 0:02:36]}  Nc6 {[%clk 0:02:14]} 11. Rac1 {[%clk 0:02:33]}  Rc8 {[%clk 0:02:10]} 12. Ba6 {[%clk 0:02:19]}  Na5 {[%clk 0:01:56]} 13. Qd1 {[%clk 0:01:49]}  Rc7 {[%clk 0:01:47]} 14. Ne5 {[%clk 0:01:42]}  Ne4 {[%clk 0:01:11]} 15. Nxe4 {[%clk 0:01:34]}  Bxe4 {[%clk 0:01:06]} 16. Bxa5 {[%clk 0:01:10]}  bxa5 {[%clk 0:00:55]} 17. Qa4 {[%clk 0:01:03]}  Rxc1 {[%clk 0:00:36]} 18. Rxc1 {[%clk 0:01:01]}  Bxe5 {[%clk 0:00:35]} 19. dxe5 {[%clk 0:01:02]}  Qb6 {[%clk 0:00:35]} 20. Qb5 {[%clk 0:00:26]}  Rb8 {[%clk 0:00:25]} 21. a4 {[%clk 0:00:16]}  Qd8 {[%clk 0:00:13]} 22. Qe2 {[%clk 0:00:15]}  Kg7 {[%clk 0:00:12]} 23. Bb5 {[%clk 0:00:15]}  Qb6 {[%clk 0:00:08]} 24. f3 {[%clk 0:00:14]}  Bf5 {[%clk 0:00:08]} 25. g4 {[%clk 0:00:13]}  Be6 {[%clk 0:00:07]} 26. Rc6 {[%clk 0:00:12]}  Qb7 {[%clk 0:00:07]} 27. Kg2 {[%clk 0:00:11]}  Rc8 {[%clk 0:00:06]} 28. Qc2 {[%clk 0:00:10]}  Rxc6 {[%clk 0:00:06]} 29. Qxc6 {[%clk 0:00:10]}  Qb6 {[%clk 0:00:04]} 30. Kf2 {[%clk 0:00:06]}  f6 {[%clk 0:00:02]} 31. exf6+ {[%clk 0:00:05]}  exf6 {[%clk 0:00:02]} 32. Qxb6 {[%clk 0:00:05]}  axb6 {[%clk 0:00:02]} 33. Ke2 {[%clk 0:00:05]}  Kf8 {[%clk 0:00:03]} 34. Kd3 {[%clk 0:00:04]}  Ke7 {[%clk 0:00:04]} 35. Kd4 {[%clk 0:00:05]}  Kd6 {[%clk 0:00:04]} 36. Bd3 {[%clk 0:00:05]}  Bd7 {[%clk 0:00:05]} 37. b3 {[%clk 0:00:05]}  Bc6 {[%clk 0:00:05]} 38. h4 {[%clk 0:00:05]}  Bd7 {[%clk 0:00:06]} 39. h5 {[%clk 0:00:04]}  gxh5 {[%clk 0:00:05]} 40. gxh5 {[%clk 0:00:05]}  h6 {[%clk 0:00:06]} 41. Bg6 {[%clk 0:00:04]}  Be6 {[%clk 0:00:06]} 42. Be8 {[%clk 0:00:04]}  Bg8 {[%clk 0:00:06]} 43. f4 {[%clk 0:00:03]}  f5 {[%clk 0:00:06]} 44. Bg6 {[%clk 0:00:04]}  Ke6 {[%clk 0:00:06]} 45. Kc3 {[%clk 0:00:02]}  Kd6 {[%clk 0:00:06]} 46. Kd4 {[%clk 0:00:02]}  Ke6 {[%clk 0:00:06]} 47. Be8 {[%clk 0:00:03]}  Kd6 {[%clk 0:00:06]} 48. Bb5 {[%clk 0:00:04]}  Be6 {[%clk 0:00:06]} 49. Bd3 {[%clk 0:00:04]}  Bd7 {[%clk 0:00:06]} 50. Ba6 {[%clk 0:00:04]}  Be6 {[%clk 0:00:06]} 51. Bb7 {[%clk 0:00:04]}  Bf7 {[%clk 0:00:06]} 52. Bc8 {[%clk 0:00:04]}  Bxh5 {[%clk 0:00:04]} 53. Bxf5 {[%clk 0:00:05]}  Bd1 {[%clk 0:00:05]} 54. Bh3 {[%clk 0:00:04]}  Bxb3 {[%clk 0:00:05]} 55. f5 {[%clk 0:00:02]}  Bxa4 {[%clk 0:00:06]} 56. f6 {[%clk 0:00:03]}  Be8 {[%clk 0:00:06]} 57. e4 {[%clk 0:00:02]}  Bf7 {[%clk 0:00:07]} 58. e5+ {[%clk 0:00:02]}  Kc7 {[%clk 0:00:06]} 59. e6 {[%clk 0:00:02]}  Bxe6 {[%clk 0:00:06]} 60. Bxe6 {[%clk 0:00:03]}  Kd6 {[%clk 0:00:07]} 61. f7 {[%clk 0:00:02]}  Ke7 {[%clk 0:00:06]} 62. Bxd5 {[%clk 0:00:03]}  h5 {[%clk 0:00:06]} 63. Ke5 {[%clk 0:00:03]}  b5 {[%clk 0:00:06]} 64. Kf5 {[%clk 0:00:03]}  a4 {[%clk 0:00:06]} 65. Kg6 {[%clk 0:00:03]}  Kf8 {[%clk 0:00:04]} 66. Kxh5 {[%clk 0:00:04]}  b4 {[%clk 0:00:05]} 67. Kg6 {[%clk 0:00:03]}  b3 {[%clk 0:00:05]} 68. Kf6 {[%clk 0:00:02]}  a3 {[%clk 0:00:02]} 69. Bxb3 {[%clk 0:00:01]}  a2 {[%clk 0:00:02]} 70. Bxa2 {[%clk 0:00:02]} 1/2-1/2


[Site "https://www.chess.com"]

[Event "Titled Tuesday Blitz June 27 Early 2023"]
[White "Ivanova, Karina"]
[Black "Gulkov, Igor A."]
[WhiteFideId "24139750"]
[BlackFideId "4120973"]
[WhiteElo "2170"]
[BlackElo "2395"]
[Result "0-1"]
[Round "5"]
[TimeControl "180+2"]
[Date "2023.06.27"]
[WhiteClock "0:00:00"]
[BlackClock "0:00:18"]
[Board "204"]

1. e4 {[%clk 0:03:00]}  c5 {[%clk 0:02:59]} 2. Nf3 {[%clk 0:03:00]}  d6 {[%clk 0:02:59]} 3. d4 {[%clk 0:02:59]}  cxd4 {[%clk 0:02:59]} 4. Nxd4 {[%clk 0:02:59]}  Nf6 {[%clk 0:02:58]} 5. Nc3 {[%clk 0:02:57]}  a6 {[%clk 0:02:58]} 6. Be2 {[%clk 0:02:53]}  e6 {[%clk 0:02:58]} 7. O-O {[%clk 0:02:49]}  Qc7 {[%clk 0:02:57]} 8. f3 {[%clk 0:02:47]}  b5 {[%clk 0:02:57]} 9. a3 {[%clk 0:02:47]}  Nbd7 {[%clk 0:02:56]} 10. Be3 {[%clk 0:02:46]}  Bb7 {[%clk 0:02:56]} 11. Qd2 {[%clk 0:02:38]}  Be7 {[%clk 0:02:56]} 12. Rfd1 {[%clk 0:02:34]}  O-O {[%clk 0:02:55]} 13. Nb3 {[%clk 0:02:30]}  Rac8 {[%clk 0:02:50]} 14. Kh1 {[%clk 0:02:23]}  d5 {[%clk 0:02:39]} 15. exd5 {[%clk 0:02:18]}  Nxd5 {[%clk 0:02:38]} 16. Nxd5 {[%clk 0:02:16]}  Bxd5 {[%clk 0:02:38]} 17. Nd4 {[%clk 0:02:11]}  Ne5 {[%clk 0:02:35]} 18. Nf5 {[%clk 0:01:45]}  Bf6 {[%clk 0:02:33]} 19. c3 {[%clk 0:01:37]}  Rfd8 {[%clk 0:02:32]} 20. Nd4 {[%clk 0:01:31]}  Nc4 {[%clk 0:02:29]} 21. Bxc4 {[%clk 0:01:28]}  bxc4 {[%clk 0:02:25]} 22. Qf2 {[%clk 0:01:24]}  Rb8 {[%clk 0:02:23]} 23. Rd2 {[%clk 0:01:22]}  Rb7 {[%clk 0:02:19]} 24. Ne2 {[%clk 0:01:08]}  Qc6 {[%clk 0:02:05]} 25. Nf4 {[%clk 0:01:07]}  Rdb8 {[%clk 0:01:47]} 26. Nxd5 {[%clk 0:01:04]}  exd5 {[%clk 0:01:46]} 27. Rad1 {[%clk 0:01:02]}  h6 {[%clk 0:01:37]} 28. Bd4 {[%clk 0:00:59]}  Bxd4 {[%clk 0:01:30]} 29. Qxd4 {[%clk 0:00:33]}  Rxb2 {[%clk 0:01:29]} 30. Qxd5 {[%clk 0:00:31]}  Qxd5 {[%clk 0:01:23]} 31. Rxd5 {[%clk 0:00:31]}  Rb1 {[%clk 0:01:22]} 32. h4 {[%clk 0:00:28]}  Rxd1+ {[%clk 0:01:21]} 33. Rxd1 {[%clk 0:00:28]}  Rb3 {[%clk 0:01:21]} 34. Rd6 {[%clk 0:00:25]}  Rxa3 {[%clk 0:01:20]} 35. Rc6 {[%clk 0:00:25]}  Rxc3 {[%clk 0:01:20]} 36. Rxa6 {[%clk 0:00:25]}  h5 {[%clk 0:01:13]} 37. Rc6 {[%clk 0:00:21]}  Kh7 {[%clk 0:01:10]} 38. Kh2 {[%clk 0:00:20]}  Rc2 {[%clk 0:00:59]} 39. Kh3 {[%clk 0:00:19]}  c3 {[%clk 0:00:55]} 40. g4 {[%clk 0:00:18]}  hxg4+ {[%clk 0:00:48]} 41. fxg4 {[%clk 0:00:18]}  f6 {[%clk 0:00:46]} 42. h5 {[%clk 0:00:18]}  Rc1 {[%clk 0:00:44]} 43. Kg2 {[%clk 0:00:16]}  Kh6 {[%clk 0:00:41]} 44. Rc5 {[%clk 0:00:16]}  Kh7 {[%clk 0:00:40]} 45. Rc6 {[%clk 0:00:15]}  Kg8 {[%clk 0:00:38]} 46. Rc7 {[%clk 0:00:15]}  Kf8 {[%clk 0:00:37]} 47. Kh2 {[%clk 0:00:13]}  c2 {[%clk 0:00:37]} 48. Kg2 {[%clk 0:00:12]}  Ke8 {[%clk 0:00:37]} 49. Rc3 {[%clk 0:00:08]}  Ke7 {[%clk 0:00:36]} 50. Rc7+ {[%clk 0:00:08]}  Ke6 {[%clk 0:00:36]} 51. Rc8 {[%clk 0:00:07]}  Ke5 {[%clk 0:00:36]} 52. Rc5+ {[%clk 0:00:06]}  Ke4 {[%clk 0:00:35]} 53. Rc8 {[%clk 0:00:04]}  Kf4 {[%clk 0:00:34]} 54. Rc4+ {[%clk 0:00:04]}  Kg5 {[%clk 0:00:34]} 55. Kh2 {[%clk 0:00:03]}  Rf1 {[%clk 0:00:20]} 56. Rxc2 {[%clk 0:00:00]}  Rf4 {[%clk 0:00:18]} 0-1


[Site "https://www.chess.com"]

[Event "Titled Tuesday Blitz June 27 Early 2023"]
[White "VoicelessFeather"]
[Black "Ruge, Edison"]
[BlackFideId "4401000"]
[WhiteElo "2144"]
[BlackElo "2200"]
[Result "0-1"]
[Round "5"]
[TimeControl "180+2"]
[Date "2023.06.27"]
[WhiteClock "0:02:04"]
[BlackClock "0:01:30"]
[Board "205"]

1. e4 {[%clk 0:03:00]}  e5 {[%clk 0:01:48]} 2. Nf3 {[%clk 0:03:00]}  Nc6 {[%clk 0:01:48]} 3. Bb5 {[%clk 0:03:01]}  f5 {[%clk 0:01:48]} 4. d3 {[%clk 0:03:00]}  fxe4 {[%clk 0:01:48]} 5. dxe4 {[%clk 0:03:01]}  Nf6 {[%clk 0:01:47]} 6. O-O {[%clk 0:03:01]}  Bc5 {[%clk 0:01:47]} 7. Bxc6 {[%clk 0:03:02]}  bxc6 {[%clk 0:01:46]} 8. Nxe5 {[%clk 0:03:02]}  O-O {[%clk 0:01:46]} 9. Nc3 {[%clk 0:03:02]}  Qe8 {[%clk 0:01:45]} 10. Nd3 {[%clk 0:03:02]}  Bd4 {[%clk 0:01:44]} 11. Ne2 {[%clk 0:02:54]}  Qxe4 {[%clk 0:01:42]} 12. Nxd4 {[%clk 0:02:50]}  Qxd4 {[%clk 0:01:42]} 13. c3 {[%clk 0:02:46]}  Qh4 {[%clk 0:01:40]} 14. Bf4 {[%clk 0:02:42]}  d6 {[%clk 0:01:40]} 15. Bg3 {[%clk 0:02:39]}  Qc4 {[%clk 0:01:33]} 16. Qb3 {[%clk 0:02:29]}  Ba6 {[%clk 0:01:32]} 17. Rfe1 {[%clk 0:02:14]}  Qxb3 {[%clk 0:01:31]} 18. axb3 {[%clk 0:02:11]}  Bxd3 {[%clk 0:01:31]} 19. Re7 {[%clk 0:02:04]}  Rf7 {[%clk 0:01:30]} 0-1


[Site "https://www.chess.com"]

[Event "Titled Tuesday Blitz June 27 Early 2023"]
[White "Tarnowska, Aleksandra"]
[Black "Mayank Chakraborty"]
[WhiteFideId "1180967"]
[BlackFideId "25659766"]
[WhiteElo "2148"]
[BlackElo "2807"]
[Result "0-1"]
[Round "5"]
[TimeControl "180+2"]
[Date "2023.06.27"]
[WhiteClock "0:00:10"]
[BlackClock "0:01:21"]
[Board "208"]

1. e4 {[%clk 0:02:56]}  c5 {[%clk 0:02:58]} 2. Nf3 {[%clk 0:02:55]}  d6 {[%clk 0:02:58]} 3. Bb5+ {[%clk 0:02:55]}  Nd7 {[%clk 0:02:58]} 4. O-O {[%clk 0:02:54]}  a6 {[%clk 0:02:56]} 5. Bxd7+ {[%clk 0:02:52]}  Bxd7 {[%clk 0:02:57]} 6. Re1 {[%clk 0:02:48]}  Nf6 {[%clk 0:02:49]} 7. d4 {[%clk 0:02:46]}  cxd4 {[%clk 0:02:48]} 8. Qxd4 {[%clk 0:02:47]}  e5 {[%clk 0:02:46]} 9. Qd3 {[%clk 0:02:32]}  Rc8 {[%clk 0:02:46]} 10. c4 {[%clk 0:02:22]}  b5 {[%clk 0:02:44]} 11. b3 {[%clk 0:02:20]}  bxc4 {[%clk 0:02:41]} 12. bxc4 {[%clk 0:02:21]}  Qc7 {[%clk 0:02:27]} 13. Nbd2 {[%clk 0:02:13]}  Be6 {[%clk 0:02:21]} 14. c5 {[%clk 0:01:46]}  dxc5 {[%clk 0:02:18]} 15. Qxa6 {[%clk 0:01:45]}  c4 {[%clk 0:02:10]} 16. Ba3 {[%clk 0:01:06]}  c3 {[%clk 0:01:35]} 17. Nb3 {[%clk 0:00:46]}  Bc4 {[%clk 0:01:22]} 18. Qa4+ {[%clk 0:00:40]}  Qd7 {[%clk 0:01:22]} 19. Qxd7+ {[%clk 0:00:27]}  Nxd7 {[%clk 0:01:23]} 20. Rac1 {[%clk 0:00:16]}  Bxa3 {[%clk 0:01:21]} 21. Rxc3 {[%clk 0:00:10]}  Bb4 {[%clk 0:01:21]} 0-1


[Site "https://www.chess.com"]

[Event "Titled Tuesday Blitz June 27 Early 2023"]
[White "Orlov, Georgi"]
[Black "Mangialardo, Tiago Carvalho"]
[WhiteFideId "2011271"]
[BlackFideId "2130718"]
[WhiteElo "2577"]
[BlackElo "2142"]
[Result "1-0"]
[Round "5"]
[TimeControl "180+2"]
[Date "2023.06.27"]
[WhiteClock "0:01:32"]
[BlackClock "0:00:00"]
[Board "209"]

1. d4 {[%clk 0:03:00]}  Nf6 {[%clk 0:02:58]} 2. Nf3 {[%clk 0:02:47]}  c5 {[%clk 0:02:56]} 3. c3 {[%clk 0:02:46]}  g6 {[%clk 0:02:56]} 4. dxc5 {[%clk 0:02:44]}  a5 {[%clk 0:02:53]} 5. Bg5 {[%clk 0:02:42]}  Bg7 {[%clk 0:02:49]} 6. Nbd2 {[%clk 0:02:41]}  Na6 {[%clk 0:02:41]} 7. Bxf6 {[%clk 0:02:33]}  Bxf6 {[%clk 0:02:42]} 8. Ne4 {[%clk 0:02:33]}  Bg7 {[%clk 0:02:42]} 9. Qd5 {[%clk 0:02:26]}  O-O {[%clk 0:02:36]} 10. e3 {[%clk 0:02:24]}  Rb8 {[%clk 0:02:01]} 11. h4 {[%clk 0:02:20]}  h6 {[%clk 0:01:28]} 12. O-O-O {[%clk 0:02:16]}  Qc7 {[%clk 0:01:14]} 13. h5 {[%clk 0:02:10]}  g5 {[%clk 0:01:13]} 14. Bd3 {[%clk 0:01:57]}  d6 {[%clk 0:00:47]} 15. cxd6 {[%clk 0:01:53]}  exd6 {[%clk 0:00:46]} 16. Qxd6 {[%clk 0:01:52]}  Qxd6 {[%clk 0:00:32]} 17. Nxd6 {[%clk 0:01:51]}  Nc5 {[%clk 0:00:26]} 18. Bc4 {[%clk 0:01:48]}  Bg4 {[%clk 0:00:16]} 19. Rd5 {[%clk 0:01:41]}  b6 {[%clk 0:00:15]} 20. Nd4 {[%clk 0:01:38]}  Rfd8 {[%clk 0:00:07]} 21. Nxf7 {[%clk 0:01:37]}  Rxd5 {[%clk 0:00:05]} 22. Bxd5 {[%clk 0:01:36]}  Kh7 {[%clk 0:00:02]} 23. f3 {[%clk 0:01:35]}  Bd7 {[%clk 0:00:02]} 24. Rd1 {[%clk 0:01:33]}  Ba4 {[%clk 0:00:00]} 25. b3 {[%clk 0:01:32]} 1-0


[Site "https://www.chess.com"]